bitfinex/quotes_SOLUSD_20230112
["timestamp","ask_amount","ask_price","bid_price","bid_amount"]
[1673502280726,1.92,16.307,16.296,17.0]
[1673502282818,1.92,16.307,16.295,23.1031957]
[1673502283029,21.06496728,16.307,16.295,23.1031957]
[1673502283223,46.01,16.306,16.295,23.1031957]
[1673502283434,1.92,16.305,16.295,23.1031957]
[1673502283658,21.06496728,16.305,16.295,23.1031957]
[1673502283858,46.01,16.304,16.295,23.1031957]
[1673502284283,21.06496728,16.305,16.295,23.1031957]
[1673502288694,46.01,16.304,16.295,23.1031957]
[1673502288916,1.92,16.303,16.295,23.1031957]
[1673502293338,65.14496728,16.307,16.295,23.1031957]
[1673502293544,0.96,16.306,16.295,23.1031957]
[1673502293863,65.14496728,16.307,16.295,23.1031957]
[1673502294284,46.0,16.307,16.296,17.0]
[1673502294902,1.92,16.306,16.296,17.0]
[1673502295628,1.92,16.306,16.295,23.1031957]
[1673502296473,1.92,16.306,16.296,17.0]
[1673502297653,1.92,16.306,16.295,23.1031957]
[1673502298075,46.01,16.305,16.295,23.1031957]
[1673502298384,1.92,16.304,16.295,23.1031957]
[1673502298992,47.93,16.304,16.295,23.1031957]
[1673502300483,119.1343,16.308,16.295,23.1031957]
[1673502300989,119.1343,16.308,16.296,17.0]
[1673502301415,20.0,16.309,16.297,20.0]
[1673502302473,45.98,16.315,16.298,63.03]
[1673502302688,45.98,16.316,16.299,1.92]
[1673502302901,65.12496728,16.316,16.3,46.02]
[1673502303109,19.14496728,16.316,16.301,1.92]
[1673502303319,19.14496728,16.316,16.303,20.0]
[1673502303531,45.97,16.319,16.303,20.0]
[1673502303737,20.0,16.318,16.304,47.93]
[1673502304264,20.0,16.319,16.305,20.0]
[1673502304482,20.0,16.319,16.306,47.93]
[1673502304692,20.0,16.32,16.306,47.93]
[1673502304891,20.0,16.32,16.307,20.0]
[1673502305106,20.0,16.323,16.308,1.92]
[1673502305320,45.96,16.322,16.308,17.0]
[1673502305522,20.0,16.321,16.308,17.0]
[1673502305938,45.95,16.325,16.308,17.0]
[1673502306168,45.95,16.326,16.309,161.6025]
[1673502306478,51.56178502,16.33,16.309,161.6025]
[1673502306479,45.94,16.329,16.311,20.0]
[1673502306680,45.94,16.329,16.312,45.99]
[1673502306681,20.0,16.328,16.312,45.99]
[1673502307011,20.0,16.328,16.313,38.92]
[1673502307197,20.0,16.328,16.315,20.0]
[1673502307415,65.08496728,16.329,16.315,20.0]
[1673502307638,19.14496728,16.329,16.316,1.92]
[1673502307842,19.14496728,16.329,16.316,64.9]
[1673502308252,45.93,16.333,16.316,64.9]
[1673502308565,21.06496728,16.332,16.316,64.9]
[1673502308779,45.94,16.331,16.316,62.98]
[1673502309015,1.92,16.33,16.316,17.0]
[1673502309540,21.92,16.33,16.316,17.0]
[1673502309845,21.92,16.33,16.316,62.98]
[1673502310784,19.14496728,16.329,16.316,45.98]
[1673502310975,19.14496728,16.329,16.314,45.99]
[1673502310976,0.96,16.328,16.314,45.99]
[1673502311191,0.96,16.327,16.314,45.99]
[1673502311405,0.96,16.326,16.313,20.0]
[1673502311614,0.96,16.326,16.314,45.99]
[1673502312451,20.0,16.328,16.314,45.99]
[1673502312682,20.0,16.328,16.315,1.92]
[1673502312871,20.0,16.329,16.316,45.98]
[1673502313081,20.0,16.329,16.317,1.92]
[1673502313311,19.14496728,16.331,16.317,1.92]
[1673502313624,45.92,16.336,16.318,45.97]
[1673502313810,19.14496728,16.334,16.32,20.0]
[1673502314021,45.93,16.333,16.32,20.0]
[1673502314556,19.14496728,16.332,16.32,20.0]
[1673502315077,19.14496728,16.332,16.318,45.97]
[1673502315078,17.06,16.33,16.317,113.869]
[1673502315292,84.86,16.329,16.317,113.869]
[1673502315500,104.00496728,16.329,16.317,113.869]
[1673502315715,19.14496728,16.328,16.317,113.869]
[1673502315930,46.91,16.327,16.317,113.869]
[1673502316144,47.87,16.327,16.317,113.869]
[1673502316453,36.14496728,16.326,16.311,65.99]
[1673502316666,47.87,16.325,16.309,134.0336]
[1673502316882,17.0,16.324,16.309,114.0336]
[1673502317078,46.92,16.323,16.309,114.0336]
[1673502317275,0.96,16.322,16.309,114.0336]
[1673502318456,0.96,16.321,16.309,114.0336]
[1673502318981,0.96,16.32,16.309,114.0336]
[1673502319173,0.96,16.321,16.309,114.0336]
[1673502319383,0.96,16.322,16.31,17.0]
[1673502319713,0.96,16.321,16.31,17.0]
[1673502322342,17.06,16.32,16.308,111.1905]
[1673502322538,83.93,16.319,16.308,111.1905]
[1673502322749,0.96,16.318,16.308,111.1905]
[1673502322960,0.96,16.317,16.308,111.1905]
[1673502323373,0.96,16.316,16.308,111.1905]
[1673502323582,0.96,16.315,16.308,111.1905]
[1673502323796,0.96,16.317,16.308,111.1905]
[1673502325276,0.96,16.317,16.304,178.6336]
[1673502325277,20.10496728,16.317,16.304,158.6336]
[1673502325486,63.94,16.316,16.304,112.6236]
[1673502325696,0.96,16.315,16.304,112.6236]
[1673502327385,20.0,16.319,16.305,1.92]
[1673502327593,20.0,16.319,16.306,46.01]
[1673502327803,20.0,16.319,16.307,21.92]
[1673502328018,45.96,16.324,16.309,20.0]
[1673502328530,45.95,16.327,16.309,20.0]
[1673502328740,0.96,16.326,16.309,20.0]
[1673502328944,0.96,16.326,16.31,47.92]
[1673502329154,0.96,16.326,16.311,130.7656]
[1673502329371,0.96,16.326,16.312,47.91]
[1673502329932,0.96,16.325,16.313,20.0]
[1673502330109,45.95,16.327,16.313,20.0]
[1673502330314,20.0,16.328,16.314,1.92]
[1673502330968,20.0,16.328,16.316,20.0]
[1673502331283,20.0,16.328,16.317,17.0]
[1673502332223,20.0,16.329,16.317,17.0]
[1673502333164,20.0,16.332,16.317,17.0]
[1673502333367,45.94,16.331,16.318,1.92]
[1673502333598,20.0,16.33,16.318,1.92]
[1673502333796,19.14496728,16.335,16.319,45.97]
[1673502334008,413.12,16.34,16.321,20.0]
[1673502334215,20.0,16.339,16.322,45.96]
[1673502334426,20.0,16.339,16.323,20.0]
[1673502334642,65.91,16.339,16.324,62.96]
[1673502334958,20.0,16.339,16.325,21.92]
[1673502335165,20.0,16.339,16.326,45.95]
[1673502335584,19.14496728,16.338,16.326,45.95]
[1673502335800,19.14496728,16.338,16.325,20.0]
[1673502336010,0.96,16.337,16.325,20.0]
[1673502336217,0.96,16.336,16.325,20.0]
[1673502336441,19.14496728,16.338,16.326,45.95]
[1673502336620,1.92,16.337,16.325,20.0]
[1673502336962,1.92,16.337,16.326,17.0]
[1673502337146,19.14496728,16.338,16.326,17.0]
[1673502338410,1.92,16.337,16.326,45.95]
[1673502338860,0.96,16.336,16.326,45.95]
[1673502339040,0.96,16.337,16.326,45.95]
[1673502340319,20.0,16.339,16.326,45.95]
[1673502340531,1.92,16.338,16.326,45.95]
[1673502344631,19.14496728,16.339,16.326,45.95]
[1673502344838,45.9,16.343,16.328,20.0]
[1673502345050,19.14496728,16.342,16.328,65.95]
[1673502346010,1.92,16.341,16.328,65.95]
[1673502347987,1.92,16.341,16.329,17.0]
[1673502353477,1.92,16.341,16.33,45.94]
[1673502353874,1.92,16.341,16.329,45.94]
[1673502355252,1.92,16.341,16.33,17.0]
[1673502356915,0.96,16.341,16.33,17.0]
[1673502357127,45.89,16.347,16.33,17.0]
[1673502358407,38.06496728,16.346,16.329,45.94]
[1673502358723,17.04,16.34,16.326,115.2922]
[1673502358946,20.0,16.339,16.326,115.2922]
[1673502359129,1.92,16.338,16.326,115.2922]
[1673502359333,21.06496728,16.338,16.326,115.2922]
[1673502359544,19.14496728,16.337,16.326,115.2922]
[1673502359755,1.92,16.336,16.326,115.2922]
[1673502362180,20.0,16.339,16.326,115.2922]
[1673502363346,1.92,16.338,16.326,115.2922]
[1673502365238,0.96,16.338,16.326,115.2922]
[1673502365459,156.5979,16.343,16.327,47.87]
[1673502365769,110.6979,16.343,16.329,20.0]
[1673502365963,19.14496728,16.344,16.329,65.94]
[1673502366174,19.14496728,16.342,16.329,65.94]
[1673502366383,19.14496728,16.343,16.329,65.94]
[1673502367218,19.14496728,16.343,16.33,1.92]
[1673502367760,19.14496728,16.347,16.33,1.92]
[1673502367980,64.82,16.346,16.331,45.94]
[1673502368300,64.82,16.346,16.328,20.0]
[1673502368475,39.14496728,16.345,16.329,17.0]
[1673502368681,39.14496728,16.345,16.328,20.0]
[1673502368682,83.86,16.344,16.327,45.95]
[1673502368914,20.96,16.343,16.327,45.95]
[1673502369128,66.87,16.342,16.326,161.2422]
[1673502369331,0.96,16.341,16.326,161.2422]
[1673502369534,0.96,16.34,16.327,20.0]
[1673502369958,0.96,16.339,16.327,20.0]
[1673502371643,20.10496728,16.339,16.326,161.2422]
[1673502371836,37.96,16.338,16.324,119.9917]
[1673502372265,39.24993456,16.337,16.324,119.9917]
[1673502372479,17.96,16.336,16.324,119.9917]
[1673502372899,0.96,16.335,16.324,119.9917]
[1673502373120,0.96,16.334,16.324,119.9917]
[1673502373428,0.96,16.333,16.324,119.9917]
[1673502373650,0.96,16.333,16.325,45.95]
[1673502373855,0.96,16.333,16.324,119.9917]
[1673502380476,0.96,16.334,16.324,119.9917]
[1673502380672,20.0,16.338,16.324,119.9917]
[1673502380883,1.92,16.337,16.324,119.9917]
[1673502382345,1.92,16.337,16.325,17.0]
[1673502382561,1.92,16.337,16.325,37.0]
[1673502384476,1.92,16.337,16.325,17.0]
[1673502385102,12.79,16.33,16.322,45.96]
[1673502385420,21.06496728,16.329,16.316,65.98]
[1673502385613,41.06496728,16.329,16.314,45.99]
[1673502385833,19.14496728,16.328,16.314,45.99]
[1673502386150,0.96,16.327,16.314,45.99]
[1673502386361,0.96,16.326,16.314,45.99]
[1673502386574,0.96,16.325,16.314,45.99]
[1673502388550,0.96,16.324,16.313,45.99]
[1673502388761,0.96,16.323,16.312,154.984]
[1673502391830,0.96,16.322,16.312,154.984]
[1673502392034,0.96,16.322,16.312,108.994]
[1673502393399,0.96,16.323,16.312,154.984]
[1673502394134,65.09496728,16.328,16.312,154.984]
[1673502394344,45.93,16.332,16.313,21.92]
[1673502394555,45.93,16.332,16.315,20.0]
[1673502395928,12.84,16.33,16.315,20.0]
[1673502396236,12.84,16.33,16.316,45.98]
[1673502396465,12.84,16.33,16.316,46.94]
[1673502397087,12.84,16.33,16.317,0.96]
[1673502397296,12.84,16.33,16.317,20.96]
[1673502399817,12.84,16.33,16.317,65.98]
[1673502400023,1.92,16.328,16.317,65.98]
[1673502400234,1.92,16.328,16.317,20.0]
[1673502400983,12.84,16.33,16.317,20.0]
[1673502402038,12.84,16.33,16.316,45.98]
[1673502402249,1.92,16.328,16.315,65.98]
[1673502402775,0.96,16.328,16.316,0.96]
[1673502402987,31.98496728,16.33,16.316,1.92]
[1673502403614,31.98496728,16.33,16.317,45.98]
[1673502404354,12.84,16.33,16.317,45.98]
[1673502405820,12.84,16.33,16.316,47.9]
[1673502411999,12.84,16.33,16.316,45.98]
[1673502412425,1.92,16.328,16.315,65.98]
[1673502412634,1.92,16.328,16.315,20.0]
[1673502414115,1.92,16.328,16.316,45.98]
[1673502415094,38.06496728,16.328,16.314,45.99]
[1673502415404,45.95,16.327,16.313,45.99]
[1673502415601,0.96,16.326,16.312,154.984]
[1673502415813,0.96,16.325,16.312,154.984]
[1673502416136,0.96,16.324,16.312,154.984]
[1673502416354,0.96,16.323,16.312,108.994]
[1673502416666,0.96,16.322,16.312,108.994]
[1673502420112,0.96,16.323,16.312,108.994]
[1673502420323,45.95,16.327,16.313,20.0]
[1673502420549,1.92,16.326,16.313,20.0]
[1673502420744,65.94,16.329,16.313,20.0]
[1673502420957,65.94,16.329,16.315,20.0]
[1673502421798,65.94,16.329,16.313,65.99]
[1673502422214,1.92,16.328,16.313,65.99]
[1673502426739,38.06496728,16.328,16.313,45.99]
[1673502426949,45.95,16.327,16.312,108.994]
[1673502427175,18.92,16.326,16.311,20.0]
[1673502427381,38.06496728,16.326,16.311,20.0]
[1673502427580,19.14496728,16.325,16.311,20.0]
[1673502427791,1.92,16.324,16.311,20.0]
[1673502429592,1.92,16.324,16.312,45.99]
[1673502431261,1.92,16.324,16.311,20.0]
[1673502440960,1.92,16.324,16.31,46.0]
[1673502441696,12.79,16.32,16.31,46.0]
[1673502441894,18.92,16.319,16.302,156.7969]
[1673502442107,104.03496728,16.319,16.302,156.7969]
[1673502442430,19.14496728,16.318,16.302,156.7969]
[1673502442648,0.96,16.317,16.303,20.0]
[1673502442847,0.96,16.316,16.303,20.0]
[1673502443061,0.96,16.315,16.303,20.0]
[1673502453264,0.96,16.316,16.303,20.0]
[1673502453676,0.96,16.315,16.303,20.0]
[1673502454735,0.96,16.315,16.304,46.01]
[1673502456296,0.96,16.315,16.303,20.0]
[1673502456297,0.96,16.315,16.303,66.02]
[1673502457365,0.96,16.316,16.303,66.02]
[1673502462506,39.14496728,16.319,16.304,1.92]
[1673502462720,1.92,16.318,16.304,1.92]
[1673502464827,1.92,16.318,16.306,20.0]
[1673502466833,39.14496728,16.319,16.306,20.0]
[1673502467045,39.14496728,16.319,16.307,1.92]
[1673502467238,39.14496728,16.319,16.306,20.0]
[1673502473121,39.14496728,16.319,16.305,46.01]
[1673502473342,1.92,16.318,16.305,46.01]
[1673502473550,1.92,16.318,16.304,46.01]
[1673502473760,21.06496728,16.318,16.305,20.0]
[1673502474407,19.14496728,16.318,16.305,20.0]
[1673502474614,20.0,16.319,16.306,46.01]
[1673502474830,20.0,16.319,16.307,1.92]
[1673502475056,20.0,16.319,16.307,21.92]
[1673502475256,396.1,16.324,16.308,66.0]
[1673502475572,396.1,16.324,16.31,12.79]
[1673502475761,396.1,16.324,16.311,45.99]
[1673502475975,611.04,16.33,16.312,0.96]
[1673502476186,611.04,16.33,16.313,45.99]
[1673502476187,20.0,16.329,16.313,45.99]
[1673502476396,20.0,16.329,16.314,20.0]
[1673502476628,20.0,16.329,16.315,45.98]
[1673502476816,17.96,16.328,16.311,45.99]
[1673502477017,18.92,16.328,16.311,45.99]
[1673502478605,17.0,16.328,16.311,45.99]
[1673502478817,85.08496728,16.329,16.312,21.92]
[1673502479967,1.92,16.328,16.312,21.92]
[1673502483221,38.06496728,16.328,16.311,45.99]
[1673502483433,65.95,16.327,16.31,46.0]
[1673502483663,17.96,16.326,16.307,46.0]
[1673502483875,46.91,16.325,16.306,66.01]
[1673502484088,17.96,16.324,16.306,66.01]
[1673502484399,45.96,16.323,16.306,66.01]
[1673502484612,18.92,16.322,16.306,66.01]
[1673502486083,12.79,16.32,16.306,66.01]
[1673502486292,0.96,16.319,16.306,66.01]
[1673502486512,1.92,16.319,16.306,66.01]
[1673502486827,1.92,16.319,16.308,223.5571]
[1673502487038,21.92,16.319,16.308,108.251]
[1673502488287,21.92,16.319,16.304,46.01]
[1673502488482,62.97,16.318,16.303,20.0]
[1673502488694,0.96,16.317,16.303,20.0]
[1673502489011,0.96,16.316,16.303,20.0]
[1673502489216,0.96,16.315,16.303,20.0]
[1673502489529,0.96,16.314,16.303,20.0]
[1673502489742,0.96,16.313,16.303,20.0]
[1673502490397,0.96,16.312,16.303,20.0]
[1673502491107,0.96,16.312,16.302,118.533]
[1673502491442,0.96,16.313,16.302,118.533]
[1673502492191,62.97,16.318,16.302,118.533]
[1673502492371,1.92,16.317,16.302,164.553]
[1673502492702,0.96,16.317,16.302,164.553]
[1673502492899,65.97,16.319,16.303,21.92]
[1673502494061,1.92,16.318,16.303,21.92]
[1673502496483,1.92,16.318,16.302,164.553]
[1673502496803,65.12496728,16.317,16.302,118.533]
[1673502496995,18.92,16.316,16.302,118.533]
[1673502497221,45.98,16.315,16.302,118.533]
[1673502497410,18.92,16.314,16.301,20.0]
[1673502498064,64.91,16.314,16.301,20.0]
[1673502501096,64.91,16.314,16.3,20.0]
[1673502501510,64.91,16.314,16.299,113.2608]
[1673502501511,84.05496728,16.314,16.299,113.2608]
[1673502501718,12.79,16.31,16.297,162.7469]
[1673502501951,17.96,16.309,16.297,116.7169]
[1673502502161,20.96,16.308,16.297,116.7169]
[1673502502374,0.96,16.307,16.297,116.7169]
[1673502502582,0.96,16.306,16.297,116.7169]
[1673502502897,0.96,16.305,16.297,116.7169]
[1673502503306,0.96,16.306,16.297,116.7169]
[1673502503521,0.96,16.307,16.297,116.7169]
[1673502503836,0.96,16.306,16.297,116.7169]
[1673502504450,0.96,16.307,16.297,116.7169]
[1673502504659,20.0,16.308,16.297,116.7169]
[1673502504874,20.0,16.309,16.297,116.7169]
[1673502505094,1.92,16.308,16.298,20.0]
[1673502506558,21.06496728,16.308,16.298,20.0]
[1673502506885,20.0,16.309,16.298,20.0]
[1673502508858,12.79,16.31,16.298,20.0]
[1673502509070,65.12496728,16.316,16.298,20.0]
[1673502509071,19.14496728,16.316,16.301,20.0]
[1673502509285,19.14496728,16.316,16.302,47.94]
[1673502509500,19.14496728,16.316,16.303,20.0]
[1673502509714,12.79,16.31,16.303,20.0]
[1673502509927,12.79,16.31,16.303,19.88850549]
[1673502510355,12.79,16.31,16.301,20.0]
[1673502510356,1.92,16.309,16.301,20.0]
[1673502510667,19.14496728,16.308,16.299,114.3467]
[1673502510856,47.93,16.307,16.299,114.3467]
[1673502511066,47.93,16.307,16.296,20.0]
[1673502511278,67.07496728,16.307,16.295,23.1031957]
[1673502511507,21.06496728,16.307,16.295,23.1031957]
[1673502511700,46.0,16.309,16.295,23.1031957]
[1673502511910,20.0,16.308,16.296,20.0]
[1673502512536,20.0,16.309,16.296,20.0]
[1673502513379,1.92,16.308,16.296,20.0]
[1673502514013,1.92,16.308,16.296,66.04]
[1673502514346,1.92,16.308,16.296,20.0]
[1673502514743,1.92,16.308,16.295,23.1031957]
[1673502514744,19.14496728,16.307,16.295,23.1031957]
[1673502514956,63.97,16.306,16.295,23.1031957]
[1673502515166,0.96,16.305,16.295,23.1031957]
[1673502515375,0.96,16.304,16.295,23.1031957]
[1673502515919,0.96,16.304,16.296,20.0]
[1673502516323,19.14496728,16.304,16.295,23.1031957]
[1673502516546,65.15496728,16.304,16.295,23.1031957]
[1673502516751,20.0,16.303,16.295,23.1031957]
[1673502516977,46.02,16.302,16.295,23.1031957]
[1673502517177,20.0,16.301,16.295,23.1031957]
[1673502517582,46.03,16.3,16.295,23.1031957]
[1673502517805,20.96,16.299,16.295,23.1031957]
[1673502518013,1.92,16.299,16.295,23.1031957]
[1673502518335,46.0,16.308,16.295,23.1031957]
[1673502518534,19.14496728,16.305,16.295,23.1031957]
[1673502518739,66.01,16.304,16.295,23.1031957]
[1673502519170,46.01,16.304,16.295,23.1031957]
[1673502519382,119.2926,16.309,16.295,23.1031957]
[1673502519383,46.01,16.306,16.295,23.1031957]
[1673502519584,46.0,16.308,16.295,23.1031957]
[1673502519995,65.14496728,16.308,16.295,23.1031957]
[1673502520205,1.92,16.307,16.295,23.1031957]
[1673502520433,21.06496728,16.307,16.295,23.1031957]
[1673502521050,17.0,16.306,16.295,23.1031957]
[1673502521260,0.96,16.305,16.295,23.1031957]
[1673502521470,1.92,16.305,16.295,23.1031957]
[1673502521678,20.10496728,16.305,16.295,23.1031957]
[1673502521910,0.96,16.304,16.295,23.1031957]
[1673502522225,40.10496728,16.304,16.295,23.1031957]
[1673502522421,66.12496728,16.303,16.295,23.1031957]
[1673502522632,20.96,16.302,16.295,23.1031957]
[1673502522953,46.98,16.301,16.295,23.1031957]
[1673502523158,20.96,16.3,16.295,23.1031957]
[1673502524421,0.96,16.299,16.295,23.1031957]
[1673502525688,20.96,16.3,16.295,23.1031957]
[1673502525894,0.96,16.299,16.295,23.1031957]
[1673502526109,20.96,16.299,16.295,23.1031957]
[1673502526321,0.96,16.298,16.295,23.1031957]
[1673502526744,0.96,16.297,16.295,23.1031957]
[1673502527056,0.96,16.296,16.295,23.1031957]
[1673502527488,1.92,16.296,16.295,23.1031957]
[1673502530013,0.96,16.296,16.295,23.1031957]
[1673502530221,20.0,16.299,16.295,23.1031957]
[1673502530422,1.92,16.298,16.295,23.1031957]
[1673502530841,65.17496728,16.297,16.295,23.1031957]
[1673502531160,65.17496728,16.297,16.284,20.0]
[1673502531161,39.14496728,16.296,16.281,20.0]
[1673502531379,12.79,16.29,16.281,20.0]
[1673502531694,12.79,16.29,16.274,154.701]
[1673502531695,20.0,16.289,16.275,20.0]
[1673502531901,0.96,16.288,16.275,20.0]
[1673502532102,47.02,16.287,16.275,20.0]
[1673502532310,17.96,16.286,16.264,46.13]
[1673502532513,46.07,16.285,16.28,80.0808884]
[1673502532725,20.0,16.283,16.264,111.7293]
[1673502532931,63.92,16.28,16.264,111.7293]
[1673502533161,84.04,16.279,16.264,111.7293]
[1673502533564,103.18496728,16.279,16.264,111.7293]
[1673502533774,39.14496728,16.278,16.264,109.2293]
[1673502534093,83.19496728,16.277,16.264,109.2293]
[1673502534423,47.05,16.277,16.264,109.2293]
[1673502535247,36.14496728,16.276,16.264,109.2293]
[1673502535452,46.1,16.275,16.264,109.2293]
[1673502535664,65.24496728,16.275,16.264,109.2293]
[1673502535993,66.08,16.279,16.265,20.0]
[1673502536416,20.0,16.279,16.266,17.0]
[1673502536838,66.08,16.279,16.267,20.0]
[1673502537031,20.0,16.279,16.267,20.0]
[1673502537979,19.14496728,16.278,16.267,20.0]
[1673502538195,0.96,16.277,16.267,20.0]
[1673502538630,20.10496728,16.278,16.267,20.0]
[1673502539582,20.0,16.279,16.268,17.0]
[1673502539794,20.0,16.279,16.268,16.0]
[1673502541895,20.0,16.279,16.269,1.92]
[1673502542105,20.0,16.279,16.269,21.92]
[1673502542725,20.0,16.279,16.269,20.0]
[1673502542921,66.08,16.279,16.269,20.0]
[1673502543137,20.0,16.279,16.269,20.0]
[1673502543782,0.96,16.278,16.267,19.5]
[1673502543999,46.09,16.277,16.265,24.587826]
[1673502544184,17.96,16.276,16.265,24.587826]
[1673502544393,66.08,16.279,16.265,24.587826]
[1673502544617,66.08,16.279,16.266,20.0]
[1673502545872,1.92,16.278,16.266,20.0]
[1673502546306,46.09,16.277,16.266,20.0]
[1673502546919,48.01,16.278,16.266,20.0]
[1673502547353,48.01,16.278,16.265,44.587826]
[1673502547871,17.0,16.277,16.265,24.587826]
[1673502548202,65.23496728,16.276,16.265,24.587826]
[1673502548388,1.92,16.275,16.265,24.587826]
[1673502548595,46.1,16.274,16.265,24.587826]
[1673502548812,1.92,16.273,16.265,24.587826]
[1673502549459,48.02,16.273,16.265,24.587826]
[1673502549669,1.92,16.273,16.265,24.587826]
[1673502550387,46.1,16.275,16.265,24.587826]
[1673502550616,46.09,16.278,16.265,24.587826]
[1673502551149,20.0,16.277,16.252,46.16]
[1673502551452,20.0,16.277,16.257,116.3338]
[1673502551453,63.82,16.27,16.257,116.3338]
[1673502551663,66.11,16.269,16.259,24.605235]
[1673502551855,1.92,16.268,16.259,24.605235]
[1673502552066,46.12,16.267,16.259,24.605235]
[1673502552908,18.92,16.266,16.259,24.605235]
[1673502553119,46.12,16.265,16.259,24.605235]
[1673502553428,46.12,16.266,16.259,24.605235]
[1673502553642,46.12,16.268,16.259,24.605235]
[1673502553853,46.12,16.268,16.259,23.605235]
[1673502555129,19.14496728,16.267,16.259,23.605235]
[1673502555336,46.12,16.266,16.259,23.605235]
[1673502555549,20.0,16.267,16.259,23.605235]
[1673502555747,65.26496728,16.266,16.259,23.605235]
[1673502555964,1.92,16.265,16.259,23.605235]
[1673502556374,46.13,16.264,16.259,23.605235]
[1673502556583,37.96,16.263,16.259,23.605235]
[1673502556796,47.09,16.262,16.259,23.605235]
[1673502557024,20.96,16.261,16.259,23.605235]
[1673502557233,20.96,16.261,16.259,17.052835]
[1673502557444,82.28496728,16.26,16.259,3.789535]
[1673502557643,82.28496728,16.26,16.237,46.2]
[1673502557644,13.260465,16.259,16.237,159.1082]
[1673502557854,12.79,16.25,16.237,112.9082]
[1673502558072,20.96,16.249,16.237,112.9082]
[1673502558282,68.09,16.249,16.241,343.2490595]
[1673502558691,109.87159792,16.26,16.242,10.7549232]
[1673502558908,58.72159792,16.26,16.242,44.69]
[1673502559235,12.92,16.26,16.241,389.4390595]
[1673502559442,46.14,16.259,16.242,20.0]
[1673502559754,46.14,16.259,16.243,46.19]
[1673502559965,65.28496728,16.259,16.242,20.0]
[1673502560373,12.79,16.25,16.241,343.2490595]
[1673502560583,66.17,16.249,16.241,343.2490595]
[1673502561053,12.79,16.25,16.241,343.2490595]
[1673502561336,45.80159792,16.258,16.241,343.5569195]
[1673502561650,12.67,16.26,16.242,66.19]
[1673502562067,12.67,16.26,16.242,76.936394]
[1673502562290,46.12,16.266,16.243,38.92]
[1673502562477,64.0,16.27,16.245,20.0]
[1673502562478,46.11,16.269,16.245,20.0]
[1673502562805,64.0,16.27,16.25,12.69]
[1673502563118,64.0,16.27,16.251,46.16]
[1673502563438,65.25496728,16.269,16.248,20.0]
[1673502563636,65.25496728,16.269,16.249,48.09]